Cogmind - Beta 14 *** ADVENTURER MODE // 2024.08.10 @ 09:27:48 Player: Geraldon Result: Destroyed by Lightning with EMDS Performance ------------- Evolutions (4) 2000 Regions Visited (14) 2800 Robots Destroyed (97) 485 Value Destroyed (3456) 3456 Prototype IDs (17) 340 Alien Tech Used (0) 0 Bonus (1840) 1840 TOTAL SCORE: 10921 Bonus ------- Follower Combat Kills 1368 Network Hubs Disabled 200 Met Zhirov 300 Friendly Fire -28 Cogmind --------- Core Integrity 0/850 Matter 300/300 Energy 77/100 System Corruption 21% Temperature Cool (0) Movement Core (50) Location -6/Hub_04(d) Parts ------- > --- POWER (1) -------- (None) > --- PROPULSION (4) --- Centrium Heavy Treads > --- UTILITY (8) ------ Hacking Suite Improved Hacking Suite Improved Hacking Suite System Shield System Shield > --- WEAPON (2) ------- (None) > --- INVENTORY (5) ---- Hacking Suite Hacking Suite System Shield Improved System Shield Advanced Variable Charge Gun Peak State ------------ > --- POWER ------------ Quantum Reactor > --- PROPULSION ------- Centrium Heavy Treads Centrium Heavy Treads > --- UTILITY ---------- Advanced Heat Sink Enhanced Optical Array Hardened Medium Armor Plating Hacking Suite Improved Hacking Suite System Shield System Shield Advanced System Shield > --- WEAPON ----------- Advanced Variable Charge Gun Advanced KE Penetrator > --- INVENTORY -------- Hacking Suite Hacking Suite Improved Hacking Suite Improved System Shield Advanced Variable Charge Gun [Rating: 96] Favorites ----------- Power Deuterium Engine Engine Deuterium Engine Power Core Micro Fission Core Reactor Quantum Reactor Propulsion Titanium Leg Treads Light Treads Leg Titanium Leg Hover Unit Improved Airjet Flight Unit Improved VTOL Module Utility Hacking Suite Device Improved Heat Sink Storage Large Storage Unit Processor Enhanced Optical Array Hackware Hacking Suite Protection Reactive Plating Weapon Cooled Particle Cannon Energy Gun Advanced Variable Charge Gun Energy Cannon Cooled Particle Cannon Ballistic Gun Assault Rifle Launcher Grenade Launcher Special Weapon Remote Datajack Impact Weapon Impact Mace Special Melee Weapon Improved Datajack Build | -11 -10 -10 -10 -8 -7 -7 -7 -6 -6 -6 -6 -6 -6 -6 ------- Run | Yrd Mat Min Sub Mat Fac Was Fac Fac Was Fac Ext Cet Arc Hub Slots Evolved 8 | . . . . 4 2 . . 2 . . . . . . Power . | . . . . . . . . . . . . . . . Propulsion 2 | . . . . 2 . . . . . . . . . . Utility 6 | . . . . 2 2 . . 2 . . . . . . Weapon . | . . . . . . . . . . . . . . . Parts Attached 91 | 7 . 7 10 22 11 4 . 10 . 6 4 8 . 2 Power 11 | 1 . 1 3 2 . 1 . 1 . . . 2 . . Engine 8 | 1 . 1 3 2 . . . . . . . 1 . . Core 2 | . . . . . . 1 . 1 . . . . . . Reactor 1 | . . . . . . . . . . . . 1 . . Propulsion 23 | 2 . 1 1 9 4 . . . . 3 1 2 . . Treads 5 | 2 . 1 . . . . . . . . . 2 . . Leg 10 | . . . 1 9 . . . . . . . . . . Wheel . | . . . . . . . . . . . . . . . Hover 4 | . . . . . 3 . . . . 1 . . . . Flight 4 | . . . . . 1 . . . . 2 1 . . . Utility 32 | 2 . . 1 7 5 1 . 8 . 1 3 2 . 2 Device 9 | . . . . 3 . . . 4 . 1 . 1 . . Storage 4 | 2 . . . 2 . . . . . . . . . . Processor 2 | . . . . . . . . 1 . . 1 . . . Hackware 10 | . . . . . 5 . . 1 . . 2 1 . 1 Protection 7 | . . . 1 2 . 1 . 2 . . . . . 1 Artifact . | . . . . . . . . . . . . . . . Weapon 25 | 2 . 5 5 4 2 2 . 1 . 2 . 2 . . Energy Gun 5 | . . 1 1 . 1 1 . . . . . 1 . . Energy Cannon 6 | . . . . 4 1 . . . . 1 . . . . Ballistic Gun 9 | 2 . 3 3 . . . . . . . . 1 . . Ballistic Cannon . | . . . . . . . . . . . . . . . Launcher 2 | . . 1 1 . . . . . . . . . . . Special Weapon 1 | . . . . . . . . 1 . . . . . . Impact Weapon 1 | . . . . . . . . . . 1 . . . . Slashing Weapon . | . . . . . . . . . . . . . . . Piercing Weapon . | . . . . . . . . . . . . . . . Special Melee Weapon 1 | . . . . . . 1 . . . . . . . . Unidentified Prototypes 9 | . . . . 1 1 1 . 1 . 2 . 3 . . Parts Lost 26 | . . 4 1 3 . . . 2 . . 6 4 1 5 Power 2 | . . 1 . . . . . . . . . 1 . . Propulsion 7 | . . 2 . 2 . . . . . . 2 . . 1 Utility 10 | . . . . 1 . . . 2 . . 2 2 1 2 Weapon 7 | . . 1 1 . . . . . . . 2 1 . 2 Highest Loss Streak 5 | . . 3 1 1 . . . 1 . . 4 4 1 5 To Critical Strikes . | . . . . . . . . . . . . . . . Average Slot Usage (%) 90 | . 100 93 79 92 79 85 100 94 100 99 91 82 85 83 Engine 7 | . 14 13 13 8 7 1 . . . . . . . . Core 1 | . . . . . . 5 7 5 6 6 6 . . . Treads 5 | . 28 22 14 . . . . . . . . 11 13 13 Leg 15 | . . . 8 32 2 . . . . . . . . . Hover 3 | . . . . . 20 23 23 20 20 11 . . . . Flight 2 | . . . . . 5 7 7 6 6 14 20 1 . . Device 5 | . . . . 9 1 . . 3 6 6 6 5 6 6 Storage 6 | . 28 28 1 7 . . . . . . . . . . Hackware 12 | . . . . . 23 38 38 33 40 40 44 38 39 36 Protection 8 | . . . 12 15 . . 7 9 . . . . . 5 Energy Gun 2 | . . 5 8 . . . . . . . 1 6 6 5 Energy Cannon 9 | . . . . 17 15 8 7 6 6 5 4 . . . Ballistic Gun 5 | . 28 21 17 . . . . . . . . 4 6 5 Peak Build Rating 96 | 7 7 7 15 39 48 53 53 63 63 63 62 95 95 96 Average Rating 37 | 4 7 6 11 33 42 47 52 56 62 62 56 86 94 93 On Entrance 43 | . 7 7 6 14 39 48 53 53 62 63 62 53 95 93 Naked Turns . | . . . . . . . . . . . . . . . Heaviest Build 57 | 19 19 20 30 57 56 23 15 20 16 16 15 32 32 40 Greatest Support 160 | 40 40 40 20 61 59 27 27 27 27 27 32 160 160 160 Greatest Overweight (x) 2 | . . . 1 1 . . . . . 1 1 1 . 2 Average Overweight (x) . | . . . . . . . . . . . . . . . Largest Inventory Capacity 15 | 8 8 8 8 15 15 5 5 5 5 5 5 5 5 5 Average Capacity 8 | 6 8 8 5 12 6 5 5 5 5 5 5 5 5 5 Most Carried 15 | 4 3 5 5 15 14 5 5 5 5 5 5 5 5 5 Average Carried 7 | 1 1 3 4 11 4 4 4 4 4 4 4 3 4 4 Final Capacity 15 | 8 8 8 5 15 5 5 5 5 5 5 5 5 5 5 Final Carried 14 | 1 3 2 5 14 4 5 5 4 5 5 4 4 5 5 Class Distribution -------------------- 56% | Mutant 21% | Wizard-Mutant 9% | Wizard-Sprinter 8% | Subdweller-Mutant Dominant Class ---------------- Mutant | -10/Materials Mutant | -10/Mines Subdweller-Mutant | -10/Subcaves Mutant | -8/Materials Hacker-Mutant | -7/Factory Wizard-Mutant | -7/Waste Wizard-Mutant | -7/Factory Wizard-Mutant | -6/Factory Wizard-Mutant | -6/Waste Wizard-Sprinter | -6/Factory Wizard-Sprinter | -6/Extension Wizard-Mutant | -6/Cetus Wizard-Mutant | -6/Archives Wizard-Mutant | -6/Hub_04(d) Resources | -11 -10 -10 -10 -8 -7 -7 -7 -6 -6 -6 -6 -6 -6 -6 ----------- Run | Yrd Mat Min Sub Mat Fac Was Fac Fac Was Fac Ext Cet Arc Hub Matter Collected 1669 | 282 115 295 198 282 78 72 . . 96 60 60 86 . 45 Remotely . | . . . . . . . . . . . . . . . Salvage Created 4413 | 64 383 440 144 2427 . 200 74 79 . 220 171 . 57 154 Parts 210 | 3 20 24 10 112 . 3 6 2 . 9 14 . 2 5 Haulers Intercepted 10 | . 2 . . 6 . . 1 . . 1 . . . . Recyclers Shooed 1 | . . . . 1 . . . . . . . . . . Parts Field Recycled . | . . . . . . . . . . . . . . . Retrieved Matter . | . . . . . . . . . . . . . . . Parts Self-Destructed 10 | . . . 10 . . . . . . . . . . . Prevented . | . . . . . . . . . . . . . . . Kills | -11 -10 -10 -10 -8 -7 -7 -7 -6 -6 -6 -6 -6 -6 -6 ------- Run | Yrd Mat Min Sub Mat Fac Was Fac Fac Was Fac Ext Cet Arc Hub Combat Hostiles Destroyed 75 | . 9 13 5 40 . . . 2 . 2 2 . 1 1 Melee 1 | . . . . 1 . . . . . . . . . . Guns 24 | . 9 10 3 . . . . . . . . . 1 1 Cannons 36 | . . . . 33 . . . . . 2 1 . . . AOE 10 | . . 3 2 3 . . . 2 . . . . . . Classes Destroyed 14 | 1 3 1 1 6 . . . . . . 1 . . 1 Worker 1 | . . . . . . . . . . . . . . 1 Builder 3 | . . . . 2 . . . . . . . . . 1 Hauler 10 | . 2 . . 6 . . 1 . . 1 . . . . Recycler 3 | 1 . . . 2 . . . . . . . . . . Operator 5 | . . . . 4 . . 1 . . . . . . . Watcher 3 | . . . . 1 . . . . . . . . . 2 Swarmer 8 | . 2 . . 6 . . . . . . . . . . Grunt 44 | . 7 10 . 21 . . . 2 . 2 . . 1 1 Duelist 2 | . . . . 2 . . . . . . . . . . Sentry 9 | . . . . 9 . . . . . . . . . . Hunter 2 | . . . . 2 . . . . . . . . . . Behemoth 2 | . . . . . . . . . . . 2 . . . Subdweller 5 | . . . 5 . . . . . . . . . . . Assembled 3 | . . 3 . . . . . . . . . . . . Best Kill Streak 5 | 1 3 5 2 5 . . 1 2 . 2 2 . 1 3 Combat Bots Only 5 | . 3 5 2 4 . . . 2 . 2 2 . 1 1 Max Kills in Single Turn 3 | 1 2 2 1 2 . . 1 2 . 1 1 . 1 3 Gunslinging 1 | . 1 1 . . . . . . . . . . . . Exploded 2 | . . 2 1 1 . . . 2 . . . . . . Melee 1 | . . . . 1 . . . . . . . . . . Uniques/NPCs Destroyed . | . . . . . . . . . . . . . . . Combat | -11 -10 -10 -10 -8 -7 -7 -7 -6 -6 -6 -6 -6 -6 -6 -------- Run | Yrd Mat Min Sub Mat Fac Was Fac Fac Was Fac Ext Cet Arc Hub Hostile Shots Fired 600 | . 35 68 33 162 . . 21 86 . 5 122 28 . 40 Missed 218 | . 14 12 8 56 . . 13 41 . 5 56 10 . 3 Damage Taken 6500 | . 189 631 525 1161 . . 41 736 . . 556 407 994 1260 Core 1269 | . 26 81 128 169 . . 8 156 . . 124 148 262 167 Absorbed by Shields 35 | . . . . . . . . . . . 35 . . . Redirected to Shielding 80 | . . . . . . . 14 66 . . . . . . Ignored by Resistances 1933 | . 61 194 145 430 . . 15 211 . . 188 108 250 331 Regen/Repaired (Parts) 486 | . . . . . . . . 299 88 . 72 27 . . Core Remaining (%) 68 | 100 . . 6 69 . . 98 . . . . . . . Volleys Fired 270 | 2 28 36 30 116 . 3 3 3 3 10 22 7 3 4 Largest 2 | 2 2 2 2 2 . 1 1 1 1 1 1 2 2 2 Hottest 115 | 40 40 60 60 60 . 30 30 90 30 30 90 80 115 115 Shots Fired 469 | 4 56 67 48 224 . 3 3 4 3 10 22 11 6 8 Gun 188 | 4 56 61 42 . . . . . . . . 11 6 8 Cannon 259 | . . . . 220 . 3 3 4 3 10 16 . . . Launcher 16 | . . 6 6 4 . . . . . . . . . . Special 6 | . . . . . . . . . . . 6 . . . Kinetic 151 | 4 56 46 38 . . . . . . . . . 3 4 Thermal 277 | . . . . 220 . 3 3 4 3 10 16 11 3 4 Explosive 16 | . . 6 6 4 . . . . . . . . . . Electromagnetic 19 | . . 15 4 . . . . . . . . . . . Robot Hit Streak 24 | 4 8 24 18 15 . 4 7 . 10 16 9 12 16 23 Robot Miss Streak 2 | . 1 2 1 2 . . . . . 1 1 . . . Penetration Max 1 | . . . . . . . . . . . . . . 1 Secondary Targets 8 | . 4 4 . . . . . . . . . . . . Max Gunslinging Chain 1 | . 1 1 . . . . . . . . . . . . Shots Hit Robots 348 | 4 40 52 40 152 . 3 7 . 3 8 17 11 4 7 Core Hits 174 | 2 20 23 20 76 . 1 2 3 1 7 4 6 2 7 Critical Kills 6 | . . . . 3 . 1 . . . . 1 . . 1 Critical Parts Destroyed 2 | . . . . . . . . . . . . . 1 1 Critical Strikes 9 | . . 1 . 3 . 1 . . . . 1 . 1 2 Meltdown 5 | . . . . 3 . 1 . . . . 1 . . . Destroy 3 | . . . . . . . . . . . . . 1 2 Corrupt 1 | . . 1 . . . . . . . . . . . . Melee Attacks 4 | . . . . . . . 4 . . . . . . . Impact . | . . . . . . . . . . . . . . . Slashing . | . . . . . . . . . . . . . . . Piercing . | . . . . . . . . . . . . . . . Sneak Attacks 4 | . . . . . . . 4 . . . . . . . Combat Hostiles . | . . . . . . . . . . . . . . . Follow-up Attacks . | . . . . . . . . . . . . . . . Damage Inflicted 9019 | 45 516 855 665 4589 . 81 80 551 83 219 536 140 174 485 Guns 2178 | 45 505 619 445 . . . . . . . . 140 174 250 Cannons 5243 | . . . . 4244 . 81 80 . 83 219 536 . . . Explosions 1503 | . . 236 220 283 . . . 551 . . . . . 213 Melee . | . . . . . . . . . . . . . . . Ramming 95 | . 11 . . 62 . . . . . . . . . 22 Kinetic 1630 | 45 505 445 411 . . . . . . . . . 88 136 Thermal 6311 | . . 177 . 4244 . 81 80 551 83 219 536 140 86 114 Explosive 494 | . . 59 220 215 . . . . . . . . . . Electromagnetic 489 | . . 174 34 68 . . . . . . . . . 213 Impact . | . . . . . . . . . . . . . . . Slashing . | . . . . . . . . . . . . . . . Piercing . | . . . . . . . . . . . . . . . Highest Corruption 20 | . 1 1 1 . . . . 1 1 1 1 1 1 20 Average Corruption 1 | . 1 1 1 . . . . 1 1 1 1 1 1 1 Corruption Purged . | . . . . . . . . . . . . . . . Corruption Blocked . | . . . . . . . . . . . . . . . Effects 24 | . 1 4 9 . . . . 2 . . 2 4 . 2 Message Errors 5 | . . . 2 . . . . . . . 2 1 . . Matter Fused 7 | . . 1 3 . . . . 1 . . . 1 . 1 Heat Flow Errors 1 | . . . 1 . . . . . . . . . . . Energy Discharges 4 | . . 1 1 . . . . . . . . 2 . . Parts Rejected 3 | . . 1 1 . . . . . . . . . . 1 Data Loss (minor) 2 | . 1 . 1 . . . . . . . . . . . Misfires 2 | . . 1 . . . . . 1 . . . . . . Overload Shots 8 | . . . . . . . . 2 . . 6 . . . Overflow Damage 214 | . . 21 . 78 . . . 69 . . . . . 46 Projectiles 78 | . . . . 78 . . . . . . . . . . Explosions 136 | . . 21 . . . . . 69 . . . . . 46 Melee . | . . . . . . . . . . . . . . . Knockbacks . | . . . . . . . . . . . . . . . Impact . | . . . . . . . . . . . . . . . Kinetic . | . . . . . . . . . . . . . . . Secondary . | . . . . . . . . . . . . . . . Self-Inflicted Damage 247 | . . 83 . . . . . 89 . . . . . 75 Shots 8 | . . 5 . . . . . 2 . . . . . 1 Rammed 9 | 1 2 . . . . . . . . . . . . 6 Targets Rammed 14 | 1 2 . . 5 . . . . . . . . . 6 Kicked 5 | . . . . 5 . . . . . . . . . . Crushed . | . . . . . . . . . . . . . . . Highest Temperature 101 | . 20 94 101 25 . . . 66 . . 95 1 . 9 Average Temperature 32 | . 7 43 42 9 . . . 33 . . 39 1 . 5 Received Heat Transfer 1591 | . 132 312 138 738 . . 12 27 . . 142 63 . 27 Siege Activations . | . . . . . . . . . . . . . . . Robots Corrupted . | . . . . . . . . . . . . . . . Combat Hostiles . | . . . . . . . . . . . . . . . Parts Fried 5 | . . . . . . . . . . . 2 . . 3 Impact Corruptions . | . . . . . . . . . . . . . . . Robots Melted 5 | . . . . 3 . 1 . . . . 1 . . . Combat Hostiles 5 | . . . . 3 . 1 . . . . 1 . . . Parts Melted 15 | . . . . 12 . . 1 . . 1 1 . . . Heat Transferred 8200 | . . 150 . 5809 . 111 111 400 111 296 546 407 111 148 Parts Sabotaged . | . . . . . . . . . . . . . . . Parts Stolen . | . . . . . . . . . . . . . . . Parts Stripped . | . . . . . . . . . . . . . . . Power Chain Reactions 3 | . . 2 . . . . . . . . . . . 1 Alert | -11 -10 -10 -10 -8 -7 -7 -7 -6 -6 -6 -6 -6 -6 -6 ------- Run | Yrd Mat Min Sub Mat Fac Was Fac Fac Was Fac Ext Cet Arc Hub Peak Influence 401 | 5 265 235 . 383 34 9 47 300 54 294 362 160 283 401 Initial 115 | . 2 87 . . 19 9 5 19 54 33 115 111 54 67 Average 152 | . 119 120 . 194 27 9 25 67 54 212 155 154 135 118 Maximum Alert Level 2 | . 1 1 . 1 . . . 1 . 1 1 . 1 2 Low Security (%) 72 | 100 83 83 . 63 100 100 100 92 100 31 58 100 63 88 Level 1 27 | . 16 16 . 36 . . . 7 . 68 41 . 36 8 Level 2 . | . . . . . . . . . . . . . . 2 Level 3 . | . . . . . . . . . . . . . . . Level 4 . | . . . . . . . . . . . . . . . Level 5 . | . . . . . . . . . . . . . . . High Security . | . . . . . . . . . . . . . . . Max Security . | . . . . . . . . . . . . . . . Squads Dispatched 15 | . . . . 8 . . 1 . . 3 1 . . 2 Investigation 4 | . . . . 3 . . . . . 1 . . . . Extermination . | . . . . . . . . . . . . . . . Reinforcement 10 | . . . . 5 . . 1 . . 2 1 . . 1 Assault 1 | . . . . . . . . . . . . . . 1 Garrison . | . . . . . . . . . . . . . . . Intercept . | . . . . . . . . . . . . . . . Searches Triggered . | . . . . . . . . . . . . . . . Construction Impeded 1 | . . . . 1 . . . . . . . . . . Haulers Reinforced 2 | . . . . . . . . . . 2 . . . . Active Scanning Responses . | . . . . . . . . . . . . . . . Cargo Convoy Interrupts . | . . . . . . . . . . . . . . . Stealth | -11 -10 -10 -10 -8 -7 -7 -7 -6 -6 -6 -6 -6 -6 -6 --------- Run | Yrd Mat Min Sub Mat Fac Was Fac Fac Was Fac Ext Cet Arc Hub Distress Signals 8 | . 2 . . 4 . . . . . . 1 . . 1 Communications Jammed . | . . . . . . . . . . . . . . . Distress Signals . | . . . . . . . . . . . . . . . Times Spotted 229 | . 13 13 15 76 1 . 4 18 1 9 29 5 26 19 Peak Tracking Total 20 | . 4 3 7 5 1 . 3 7 1 3 6 5 16 20 Tactical Retreats 15 | . . 1 . 4 . . . 6 . . 3 . . 1 Traps | -11 -10 -10 -10 -8 -7 -7 -7 -6 -6 -6 -6 -6 -6 -6 ------- Run | Yrd Mat Min Sub Mat Fac Was Fac Fac Was Fac Ext Cet Arc Hub Traps Triggered 14 | . 1 . . 2 1 . . 2 . 1 7 . . . Indirectly . | . . . . . . . . . . . . . . . Trap Hack Attempts . | . . . . . . . . . . . . . . . Triggered . | . . . . . . . . . . . . . . . Disarmed . | . . . . . . . . . . . . . . . Reprogrammed . | . . . . . . . . . . . . . . . Reused . | . . . . . . . . . . . . . . . Traps Extracted . | . . . . . . . . . . . . . . . Installed . | . . . . . . . . . . . . . . . Triggered 1 | . . . 1 . . . . . . . . . . . Machines | -11 -10 -10 -10 -8 -7 -7 -7 -6 -6 -6 -6 -6 -6 -6 ---------- Run | Yrd Mat Min Sub Mat Fac Was Fac Fac Was Fac Ext Cet Arc Hub Machines Disabled 17 | . . . . 6 . . . 4 . 1 . . 2 4 Max in Single Turn 4 | . . . . 1 . . . 3 . . . . . 4 Garrison Access 4 | . . . . 1 1 . . . . 1 . . . 1 Network Hub 1 | . . . . . . . . . . . . . . 1 Machines Repaired . | . . . . . . . . . . . . . . . Machines Dismantled . | . . . . . . . . . . . . . . . Machines Sabotaged . | . . . . . . . . . . . . . . . Overloaded Fab Kills . | . . . . . . . . . . . . . . . Hacking | -11 -10 -10 -10 -8 -7 -7 -7 -6 -6 -6 -6 -6 -6 -6 --------- Run | Yrd Mat Min Sub Mat Fac Was Fac Fac Was Fac Ext Cet Arc Hub Machines Accessed 44 | . 4 . . 12 1 . . 7 . 3 15 1 . 1 Terminals 32 | . 4 . . 7 . . . 2 . 2 15 1 . 1 Fabricators . | . . . . . . . . . . . . . . . Repair Stations 4 | . . . . 1 . . . 3 . . . . . . Recycling Units 2 | . . . . 1 . . . 1 . . . . . . Scanalyzers 2 | . . . . 2 . . . . . . . . . . Garrison Access 4 | . . . . 1 1 . . 1 . 1 . . . . Total Hacks 137 | . 9 . . 43 1 . . 17 . 6 55 2 . 4 Successful 102 | . 5 . . 27 1 . . 13 . 4 49 1 . 2 Failed 35 | . 4 . . 16 . . . 4 . 2 6 1 . 2 Catastrophic 2 | . . . . 2 . . . . . . . . . . Database Lockouts . | . . . . . . . . . . . . . . . Manual 61 | . 2 . . 15 . . . 4 . 3 33 . . 4 Terminals 100 | . 9 . . 20 . . . 5 . 5 55 2 . 4 Fabricators . | . . . . . . . . . . . . . . . Repair Stations 12 | . . . . 2 . . . 10 . . . . . . Recycling Units 2 | . . . . 1 . . . 1 . . . . . . Scanalyzers 19 | . . . . 19 . . . . . . . . . . Garrison Access 4 | . . . . 1 1 . . 1 . 1 . . . . Terminal Hacks 45 | . 4 . . 3 . . . 1 . 2 34 1 . . Record 2 | . . . . . . . . . . . 2 . . . Part Schematic 6 | . . . . . . . . . . . 6 . . . Robot Schematic 2 | . . . . . . . . . . . 2 . . . Robot Analysis 2 | . . . . . . . . . . . 2 . . . Prototype ID Bank 2 | . . . . . . . . . . . 2 . . . Open Door 8 | . . . . . . . . . . 1 6 1 . . Branch Access Points 3 | . . . . 1 . . . 1 . . 1 . . . Machine Index 2 | . . . . . . . . . . 1 1 . . . Alert Level 4 | . . . . 2 . . . . . . 2 . . . Unreport Threat 2 | . . . . . . . . . . . 2 . . . Locate Traps 2 | . 1 . . . . . . . . . 1 . . . Dispatch Records 2 | . . . . . . . . . . . 2 . . . Extermination Status 1 | . . . . . . . . . . . 1 . . . Hauler Manifests 4 | . 2 . . . . . . . . . 2 . . . Zone Layout 3 | . 1 . . . . . . . . . 2 . . . Fabricator Hacks . | . . . . . . . . . . . . . . . Repair Station Hacks 11 | . . . . 2 . . . 9 . . . . . . Scan Component 6 | . . . . 1 . . . 5 . . . . . . Repair 5 | . . . . 1 . . . 4 . . . . . . Recycling Unit Hacks 2 | . . . . 1 . . . 1 . . . . . . Retrieve Components 2 | . . . . 1 . . . 1 . . . . . . Scanalyzer 16 | . . . . 16 . . . . . . . . . . Insert Component 7 | . . . . 7 . . . . . . . . . . Analyze 9 | . . . . 9 . . . . . . . . . . Garrison Access Hacks 3 | . . . . 1 1 . . . . 1 . . . . Seal Access 3 | . . . . 1 1 . . . . 1 . . . . Unauthorized Hacks 25 | . 1 . . 4 . . . 2 . 1 15 . . 2 Terminals 23 | . 1 . . 3 . . . 1 . 1 15 . . 2 Track 4 | . . . . . . . . . . . 4 . . . Assimilate 4 | . . . . 1 . . . 1 . . 2 . . . Botnet 5 | . . . . . . . . . . 1 3 . . 1 Disrupt 5 | . . . . . . . . . . . 5 . . . Operators 5 | . 1 . . 2 . . . . . . 1 . . 1 Fabricators . | . . . . . . . . . . . . . . . Repair Stations . | . . . . . . . . . . . . . . . Recycling Units . | . . . . . . . . . . . . . . . Scanalyzers 1 | . . . . 1 . . . . . . . . . . Extract 1 | . . . . 1 . . . . . . . . . . Garrison Access 1 | . . . . . . . . 1 . . . . . . Reprogram 1 | . . . . . . . . 1 . . . . . . Data Cores Recovered . | . . . . . . . . . . . . . . . Used . | . . . . . . . . . . . . . . . Hacking Detections 21 | . 3 . . 9 . . . 4 . 1 3 . . 1 Full Trace Events 2 | . . . . 1 . . . . . 1 . . . . Feedback Events . | . . . . . . . . . . . . . . . Feedback Blocked . | . . . . . . . . . . . . . . . Robot Schematics Acquired 2 | . . . . . . . . . . . 2 . . . Robots Built . | . . . . . . . . . . . . . . . Authchips . | . . . . . . . . . . . . . . . Time . | . . . . . . . . . . . . . . . Total Robot Build Rating . | . . . . . . . . . . . . . . . Part Schematics Acquired 14 | . . . . 8 . . . . . . 6 . . . Parts Built . | . . . . . . . . . . . . . . . Authchips . | . . . . . . . . . . . . . . . Time . | . . . . . . . . . . . . . . . Total Part Build Rating . | . . . . . . . . . . . . . . . Parts Repaired 5 | . . . . 1 . . . 4 . . . . . . Time 226 | . . . . 38 . . . 188 . . . . . . Parts Recycled . | . . . . . . . . . . . . . . . Recycled Matter . | . . . . . . . . . . . . . . . Retrieved Matter . | . . . . . . . . . . . . . . . Retrieved Components 10 | . . . . 9 . . . 1 . . . . . . Parts Scanalyzed 7 | . . . . 7 . . . . . . . . . . Part Schematics Acquired 7 | . . . . 7 . . . . . . . . . . Parts Damaged 1 | . . . . 1 . . . . . . . . . . Bothacking | -11 -10 -10 -10 -8 -7 -7 -7 -6 -6 -6 -6 -6 -6 -6 ------------ Run | Yrd Mat Min Sub Mat Fac Was Fac Fac Was Fac Ext Cet Arc Hub Used RIF Installer . | . . . . . . . . . . . . . . . Robots Hacked 1 | . . . . . . . 1 . . . . . . . Non-combat 1 | . . . . . . . 1 . . . . . . . Combat . | . . . . . . . . . . . . . . . Robot Hacks Applied 4 | . . . . . . . 4 . . . . . . . parse_system 1 | . . . . . . . 1 . . . . . . . no_distress 1 | . . . . . . . 1 . . . . . . . find_fabricator 1 | . . . . . . . 1 . . . . . . . find_dsf 1 | . . . . . . . 1 . . . . . . . Relay Couplers Released 1 | . . . . . . . . . . . . . . 1 Machine Destruction 1 | . . . . . . . . . . . . . . 1 Fabnet Peak Effective % . | . . . . . . . . . . . . . . . Robots Rewired 7 | . . . . . . . . . . . 7 . . . Allies Hacked . | . . . . . . . . . . . . . . . Hacks Repelled . | . . . . . . . . . . . . . . . Allies | -11 -10 -10 -10 -8 -7 -7 -7 -6 -6 -6 -6 -6 -6 -6 -------- Run | Yrd Mat Min Sub Mat Fac Was Fac Fac Was Fac Ext Cet Arc Hub Total Allies 36 | . . . . . . . . 1 20 . 15 . . . Largest Group 25 | . . . . . . . . 1 20 20 25 22 18 . Highest-Rated Group 925 | . . . . . . . . 26 735 735 925 843 667 . Highest-Rated Ally 46 | . . . . . . . . 26 46 46 46 46 46 . Total Orders 3 | . . . . . . . . 3 . . . . . . EXPLORE 3 | . . . . . . . . 3 . . . . . . Ally Attacks 235 | . . . . . . . . . 2 37 74 50 72 . Total Damage 4656 | . . . . . . . . . 50 701 1632 789 1484 . Kills 43 | . . . . . . . . . 1 6 17 6 13 . Allies Corrupted . | . . . . . . . . . . . . . . . Allies Melted 1 | . . . . . . . . . . 1 . . . . Intel | -11 -10 -10 -10 -8 -7 -7 -7 -6 -6 -6 -6 -6 -6 -6 ------- Run | Yrd Mat Min Sub Mat Fac Was Fac Fac Was Fac Ext Cet Arc Hub Robot Analysis Total 2 | . . . . . . . . . . . 2 . . . Derelict Logs Recovered 2 | . . . 2 . . . . . . . . . . . Drone Launches 3 | . . . . . . . . 3 . . . . . . Drone Recoveries . | . . . . . . . . . . . . . . . Exploration | -11 -10 -10 -10 -8 -7 -7 -7 -6 -6 -6 -6 -6 -6 -6 ------------- Run | Yrd Mat Min Sub Mat Fac Was Fac Fac Was Fac Ext Cet Arc Hub Turns Passed 7653 | 104 309 521 965 3265 111 123 73 470 184 242 598 348 105 235 Spaces Moved 5735 | 60 138 256 444 1914 199 258 143 596 162 269 893 212 60 131 Core 19 | 15 . . . . . . . . . . 2 . . 2 Treads 928 | 45 138 256 134 . . . . . . . . 166 60 129 Legs 2230 | . . . 310 1914 6 . . . . . . . . . Wheels . | . . . . . . . . . . . . . . . Hover 1517 | . . . . . 193 258 143 596 162 165 . . . . Flight 1041 | . . . . . . . . . . 104 891 46 . . Fastest Speed 26 | 50 160 160 160 115 42 42 42 42 42 29 26 32 160 50 Average Speed 99 | 132 160 160 194 136 44 42 42 42 42 38 29 136 160 159 Slowest Speed 240 | 160 160 160 240 193 115 42 42 42 42 102 100 160 160 160 Overloaded Moves . | . . . . . . . . . . . . . . . Propulsion Burnouts . | . . . . . . . . . . . . . . . Robots Hopped 19 | . . . . . . . . . . . 19 . . . Cave-ins Triggered . | . . . . . . . . . . . . . . . Exploration Rate (%) 47 | 4 32 73 24 98 6 93 4 20 83 7 88 79 90 16 Regions Visited 14 Branch Regions 6 Pre-discovered Areas 1 | . . . 1 . . . . . . . . . . . Known Exits Taken 3 | . . . . 1 . . . . . 1 1 . . . Unknown Exits Taken 7 | 1 1 1 1 . . . 1 . . . . 1 1 . Scrap Searched 1 | . . 1 . . . . . . . . . . . . Spaces Dug 6 | . . . . 5 . . . 1 . . . . . . Terrain Destroyed 313 | . . 45 29 52 . . . 26 . 1 1 . 1 158 Melee . | . . . . . . . . . . . . . . . Projectile 55 | . . . . 51 . . . 1 . 1 1 . 1 . AOE 258 | . . 45 29 1 . . . 25 . . . . . 158 Terrain Rammed . | . . . . . . . . . . . . . . . Walls Destroyed . | . . . . . . . . . . . . . . . Machines Disabled . | . . . . . . . . . . . . . . . Actions | -11 -10 -10 -10 -8 -7 -7 -7 -6 -6 -6 -6 -6 -6 -6 --------- Run | Yrd Mat Min Sub Mat Fac Was Fac Fac Was Fac Ext Cet Arc Hub Total 7194 | 80 169 301 505 2347 225 269 153 813 274 396 1190 261 63 148 Wait 901 | 3 . . . 233 . . . 190 109 104 236 24 . 2 Move 5689 | 60 137 255 443 1914 199 257 142 596 161 268 856 211 59 131 Hop 17 | . . . . . . . . . . . 17 . . . Pick Up 88 | 8 2 3 9 34 5 3 2 9 1 1 5 4 1 1 Fast Attach 27 | . . . 2 7 2 1 . 3 . 6 1 4 . 1 Attach 52 | 7 . 4 6 13 8 2 . 6 . . 3 2 . 1 Detach . | . . . . . . . . . . . . . . . Swap 12 | . . 3 2 2 1 1 . 1 . . . 2 . . Drop 71 | . . . 7 24 10 2 2 5 . 7 5 7 . 2 Fire 270 | 2 28 36 30 116 . 3 3 3 3 10 22 7 3 4 Melee 4 | . . . . . . . 4 . . . . . . . Ram 4 | . . . . . . . . . . . . . . 4 Kick 4 | . . . . 4 . . . . . . . . . . Crush 4 | . 2 . . . . . . . . . . . . 2 Escape Stasis 36 | . . . . . . . . . . . 36 . . . Rewire 9 | . . . . . . . . . . . 9 . . . Trap . | . . . . . . . . . . . . . . . Miscellaneous 6 | . . . 6 . . . . . . . . . . . Route ------- -11/Scrapyard -10/Materials (discovered 2 exits: [*Mat] / [*Min]) -10/Mines -10/Subcaves (discovered 2 exits: *Mat x2) -8/Materials (discovered 3 exits: *Fac x3) -7/Factory -7/Waste -7/Factory -6/Factory (discovered 4 exits: Low x2 / Ext x2) -6/Waste -6/Factory -6/Extension (discovered 2 exits: [*Fac] / *Cet) -6/Cetus -6/Archives (discovered 3 exits: [*Fac] / *Hub x2) -6/Hub_04(d) (discovered 1 exit: [*Fac]) History --------- Turn | Location | Event 4 | -11/Scrapyard | Discovered new exit (range 16) 105 | -11/Scrapyard | Entered Materials 255 | -10/Materials | Discovered new exit (range 9) 304 | -10/Materials | Build established: Mutant 313 | -10/Materials | Discovered new exit (range 16) 414 | -10/Materials | Entered Mines 573 | -10/Mines | Excavation squad dispatched 573 | -10/Mines | A large section of the Mines collapsed 767 | -10/Mines | Lost 3 parts (2n1w) 823 | -10/Mines | Excavation squad dispatched 920 | -10/Mines | Discovered new exit (range 10) 935 | -10/Mines | Entered Subcaves 936 | -10/Subcaves | Shifting Twisted Machinery released Scrap Shield 939 | -10/Subcaves | Learned location of 1 exit from Materials 977 | -10/Subcaves | Discovered new exit (range 11) 979 | -10/Subcaves | Learned location of 1 exit from Materials 1011 | -10/Subcaves | Core integrity fell below 50% 1037 | -10/Subcaves | Ambushed by swarm of Subdwellers 1043 | -10/Subcaves | Ambushed by Subdwellers from Twisted Machinery 1043 | -10/Subcaves | Ambushed by Subdweller buried in earth 1094 | -10/Subcaves | Lost 4 allies 1166 | -10/Subcaves | Core integrity fell below 20% 1410 | -10/Subcaves | Build established: Subdweller-Mutant 1721 | -10/Subcaves | Learned location of Zion (-7) 1721 | -10/Subcaves | Met a Zionite searching for "candidates" 1749 | -10/Subcaves | A swath of the cavern ceiling suddenly collapsed 1876 | -10/Subcaves | Discovered new exit (range 10) 1900 | -10/Subcaves | Entered Materials 1900 | -8/Materials | Evolved 4 slots: Propulsion x2, Utility x2 1901 | -8/Materials | Identified exit to Factory 2093 | -8/Materials | Build established: Mutant 3372 | -8/Materials | Repaired Broken Imp. VTOL Module 3712 | -8/Materials | Discovered exit to Factory (range 11) 5165 | -8/Materials | Entered Factory 5165 | -7/Factory | Evolved 2 slots: Utility x2 5219 | -7/Factory | Discovered new exit (range 16) 5276 | -7/Factory | Sucked down chute 5276 | -7/Factory | Entered Waste 5276 | -7/Waste | The area was eerily silent 5378 | -7/Waste | Discovered new exit (range 11) 5399 | -7/Waste | Entered Factory 5441 | -7/Factory | Discovered new exit (range 11) 5472 | -7/Factory | Entered another Factory area 5472 | -6/Factory | Evolved 2 slots: Utility x2 5546 | -6/Factory | Repaired Mic. Fission Core 5568 | -6/Factory | Build established: Wizard-Mutant 5586 | -6/Factory | Repaired Imp. Propulsion Shielding 5686 | -6/Factory | Repaired Mni. Drone Bay 5846 | -6/Factory | Repaired Imp. Propulsion Shielding? 5934 | -6/Factory | Identified exit to Lower Caves 5934 | -6/Factory | Identified exit to Extension 5942 | -6/Factory | Sucked down chute 5942 | -6/Factory | Entered Waste 5943 | -6/Waste | Joined by Warlord forces that had cleared the area 5952 | -6/Waste | A Compactor rumbled back to life 5952 | -6/Waste | Spotted C-40 Crusher 5958 | -6/Waste | Allies destroyed C-40 Crusher 5997 | -6/Waste | Discovered new exit (range 15) 6126 | -6/Waste | Entered Factory 6126 | -6/Factory | Accompanied by 20 allies 6210 | -6/Factory | Discovered exit to Extension (range 14) 6368 | -6/Factory | Entered Extension 6368 | -6/Extension | Accompanied by 17 allies 6471 | -6/Extension | Identified exit to Cetus 6474 | -6/Extension | Rescued a captive Derelict 6476 | -6/Extension | Rescued a captive Derelict 6492 | -6/Extension | Spotted B-75 Beast 6493 | -6/Extension | Lost 3 allies 6499 | -6/Extension | Rescued a captive Derelict 6500 | -6/Extension | Rescued a captive Derelict 6501 | -6/Extension | Build established: Wizard-Sprinter 6722 | -6/Extension | Destroyed B-75 Beast 6729 | -6/Extension | Spotted B-75 Beast 6740 | -6/Extension | Destroyed B-75 Beast 6746 | -6/Extension | Extracted ID and sensor layout for unrecognized location from A7's data core 6764 | -6/Extension | Lost 4 parts (2n1u1w) 6768 | -6/Extension | Rescued a captive Derelict 6783 | -6/Extension | Rescued a captive Derelict 6818 | -6/Extension | Lost 3 allies 6834 | -6/Extension | Rescued a captive Derelict 6879 | -6/Extension | Discovered new exit (range 10) 6966 | -6/Extension | Entered Cetus 6966 | -6/Cetus | Accompanied by 22 allies 6970 | -6/Cetus | Spotted Cetus Guard 6970 | -6/Cetus | Spotted Cetus Guard 6970 | -6/Cetus | Spotted Cetus Guard 6970 | -6/Cetus | Spotted Cetus Guard 6989 | -6/Cetus | Allies destroyed Cetus Guard 6995 | -6/Cetus | Allies destroyed Cetus Guard 7002 | -6/Cetus | Allies destroyed Cetus Guard 7005 | -6/Cetus | Allies destroyed Cetus Guard 7007 | -6/Cetus | Core integrity fell below 50% 7030 | -6/Cetus | Lost 4 allies 7033 | -6/Cetus | Lost 4 parts (1p2u1w) 7230 | -6/Cetus | Discovered new exit (range 22) 7303 | -6/Cetus | Build established: Wizard-Mutant 7314 | -6/Cetus | Entered Archives 7314 | -6/Archives | Accompanied by 18 allies 7332 | -6/Archives | Met Zhirov 7338 | -6/Archives | Reinforcements dispatched to Archives 7364 | -6/Archives | Discovered new exit (range 22) 7383 | -6/Archives | Reinforcements dispatched to Archives 7385 | -6/Archives | Zhirov warped through subspace 7385 | -6/Archives | Discovered new exit (range 21) 7386 | -6/Archives | Discovered new exit (range 18) 7403 | -6/Archives | Zhirov detonated Archives 7404 | -6/Archives | Core integrity fell below 20% 7419 | -6/Archives | Entered Hub_04(d) 7434 | -6/Hub_04(d) | Lost 19 allies 7574 | -6/Hub_04(d) | Discovered new exit (range 15) 7628 | -6/Hub_04(d) | Network Hub disabled 7633 | -6/Hub_04(d) | Spotted Lightning 7636 | -6/Hub_04(d) | Spotted Lightning 7637 | -6/Hub_04(d) | Spotted Lightning 7637 | -6/Hub_04(d) | Spotted Lightning 7638 | -6/Hub_04(d) | Spotted Lightning 7639 | -6/Hub_04(d) | Spotted Lightning 7641 | -6/Hub_04(d) | Spotted Lightning 7641 | -6/Hub_04(d) | Spotted Lightning 7646 | -6/Hub_04(d) | Spotted Lightning 7651 | -6/Hub_04(d) | System corruption reached 10% 7654 | -6/Hub_04(d) | Destroyed by Lightning with EMDS Last Messages --------------- 07647_ Penetrated by EMDS Slug. 07648_ EMDS Slug penetrates Wall. 07649_ Slammed into Lightning. 07649_ EMDS Slug penetrates Wall. 07650_ Penetrated by EMDS Slug. 07650_ EMDS Slug penetrates Wall. 07650_ Penetrated by EMDS Slug. 07652_ Dropped Hrd. Medium Armor Plating. 07652_ Penetrated by EMDS Slug. 07652_ G-50 Soldier destroyed. 07652_ Penetrated by EMDS Slug. 07653_ Slammed into Lightning. 07653_ Adv. Heat Sink destroyed. 07653_ System corrupted by crushing effect (+4). 07653_ Centrium Heavy Treads broken. 07653_ Destabilizing: Short circuit. 07653_ Penetrated by EMDS Slug. 07653_ Centrium Heavy Treads destroyed. 07654_ Slammed into Lightning. 07654_ Penetrated by EMDS Slug. Map ----- +----------------------------------------------------+ | ?????????????????????????????????????????????????? | | ?????????????????????????????????????????????????? | | ?????????????????????????????????????????????????? | | ??????????????????????????????????????????????? ?? | | ?????????????????????????????????????????????? ?? | | ??????????????????????????????????????????????/#?? | | ?????????????????????????????????????????????# #?? | | ?????????????????????????????????????????????# #?? | | ?????????????????????????????????????????????# ### | | ????????????????????????????????????????????? | | ????????????????????????????????????????????? | | ????????????????????????????????????????????? ##+ | | ????????????????????????????????????????????? # | | ?????????????????????????????????????????#### # | | ?????????????????????????????????????????+ ?# " | | ?????????????????????????????????????????? ?# | | ??????????????????????????????????????????##+##### | | ??????????????????????????????????????????# | | ??????????????????????#???????????????????# " " " | | ??????????????????????# ??????????????????# " "%" | | ??????????????????????# ??????????????????# " "%" | | ??????????????????????# ??????????????????# | | ?????????????????????##g#?????????????????# " " " | | ?????????????????????# ################## " " " | | ???###???????????????# h hhh h R + " " " | | ##""G""#????????????#i @ #####+###### | | """ """##############h%h #?? ????# | | ! %! * %%%!=%[i #? ????# """ "" | | """""""""""##########/########## " " " ???# """T"" | | ########???????#= #????# " " " ???######## | | ????????????????# = #????# " " " "?????????? | | ????????????????# #????# ?????????? | | ????????????????# #????# ! ????????? | | ????????????????###########????###?###?##????????? | | | | | | | | | | | | | | | | | | | | | | | | | | | | | | | | | +----------------------------------------------------+ Best States ------------- Heat Dissipation 67 Energy Generation 25 Energy Capacity 350 Matter Stores 300 Matter Capacity 300 Sight Range 22 Terrain Scan Range 20 Terrain Scan Density 210 Additional Mass Support 12 Armor Coverage 950 Resistance: KI 40 Resistance: TH 20 Resistance: EX 20 Resistance: EM 20 Resistance: I 20 Resistance: S 20 Resistance: P 20 Propulsion Shielding 66 Evasion (%) 64 Recoil Reduction 4 Offensive Hacking 50 Defensive Hacking 44 Authchip Count 1 Item Schematics ----------------- Cld. Particle Cannon | -8/Materials | Scanalyzed Adv. Beam Rifle | -8/Materials | Scanalyzed Imp. VTOL Module | -8/Materials | Scanalyzed Hacking Suite | -8/Materials | Scanalyzed Imp. Airjet | -8/Materials | Scanalyzed Sub. Shrapnel Launcher | -8/Materials | Scanalyzed Hvy. EM Shotgun | -8/Materials | Scanalyzed Spread Laser | -8/Materials | Extracted Adv. Shield Generator | -6/Extension | Hacked Adv. Hacking Suite | -6/Extension | Hacked Adv. System Shield | -6/Extension | Hacked Imp. Propulsion Shielding | -6/Extension | Hacked Mic. Fission Core | -6/Extension | Hacked Imp. Weapon Cycler | -6/Extension | Hacked Robot Schematics ------------------ S-27 Virus | -6/Extension | Hacked Y-64 Sentinel | -6/Extension | Hacked Fabricated ------------ Nothing Alien Tech Used ----------------- None Achievements -------------- None Challenges ------------ None Game ------ Seed PrecisionSlugFalx Manual? 0 Play Time 01:20:23 Cumulative 663.0 hours Start 2024.08.10 @ 08:08:09 End 2024.08.10 @ 09:27:48 Sessions 1 Manual Loads 0 Difficulty Adventurer Special Mode None Game No. 658 Rogue 616 Adventurer 42 Explorer 0 Win Type - Total 32 Types 24/0/6/1/0/0/0/1/0 Lore% 51 Gallery% 78 Achievement% 79 Wizard Run 0 Options --------- Layout 1 ASCII 0 Keyboard 0 Movement Mouse Keybinds 0 Fullscreen 1 Font 24/Smallcaps Map View 50x35 Zoom Use 4% Tactical HUD 1 Map Filters NONE Filters NONE Steam 1 RUN: cfc37659-359f-4c60-a1b0-34f4edb9a424